[Event "7. Arber-Senioren-Cup 2019"]
[Site "Bodenmais"]
[Date "2019.07.31"]
[Round "5.19"]
[White "Bock, Ortwin"]
[Black "Schuster, Herbert"]
[Result "1/2-1/2"]
[ECO "C25"]
[WhiteElo "1938"]
[BlackElo "1774"]
[Annotator "NA"]
[PlyCount "36"]
[EventDate "2019.07.27"]
[EventType "swiss"]
[EventCountry "GER"]
[SourceTitle "playchess.com"]
[Source "ChessBase"]
[SourceQuality "1"]
[TimeControl "60/7800+30:0"]

1. e4 {[%emt 0:00:00]} e5 {[%emt 0:00:15]} 2. Nc3 {[%emt 0:00:39]} c6 {[%emt 0:00:56]} 3. Nf3 {[%emt 0:01:05]} d6 {[%emt 0:00:30]} 4. h3 {[%emt 0:00:58]} h6 {[%emt 0:00:43]} 5. d4 {[%emt 0:01:16]} exd4 {[%emt 0:00:38]} 6. Nxd4 {[%emt 0:00:15]} Be7 {[%emt 0:03:29]} 7. Be3 {[%emt 0:04:07]} Nf6 {[%emt 0:01:38]} 8. Be2 {[%emt 0:02:13]} Qa5 {[%emt 0:01:51]} 9. O-O {[%emt 0:03:30]} b5 {[%emt 0:03:26]} 10. a3 {[%emt 0:04:10]} a6 {[%emt 0:00:41]} 11. b4 {[%emt 0:04:51]} Qc7 {[%emt 0:01:00]} 12. f4 {[%emt 0:08:09]} Nh7 {[%emt 0:05:23]} 13. Qd2 {[%emt 0:04:03]} g6 {[%emt 0:01:26]} 14. Nf3 {[%emt 0:05:07]} Nd7 {[%emt 0:01:29]} 15. Bd4 {[%emt 0:05:07]} O-O {[%emt 0:01:15]} 16. Rae1 {[%emt 0:08:38]} Bb7 {[%emt 0:03:10]} 17. Be3 {[%emt 0:09:33]} Rae8 {[%emt 0:02:51]} 18. Bd3 {[%emt 0:05:12]} Bf6 {[%emt 0:03:10]} 1/2-1/2

[Event "7. Arber-Senioren-Cup 2019"]
[Site "Bodenmais"]
[Date "2019.07.31"]
[Round "5.20"]
[White "Mahnke, Ralf"]
[Black "Riess, Michael"]
[Result "1/2-1/2"]
[ECO "D07"]
[WhiteElo "1925"]
[BlackElo "1686"]
[Annotator "NA"]
[PlyCount "141"]
[EventDate "2019.07.27"]
[EventType "swiss"]
[EventCountry "GER"]
[SourceTitle "playchess.com"]
[Source "ChessBase"]
[SourceQuality "1"]
[TimeControl "60/7800+30:0"]

1. d4 {[%emt 0:00:00]} d5 {[%emt 0:00:00]} 2. c4 {[%emt 0:00:00]} Nc6 {[%emt 0:00:00]} 3. Nf3 {[%emt 0:00:39]} Bg4 {[%emt 0:00:00]} 4. e3 {[%emt 0:00:46]} Nf6 {[%emt 0:01:20]} 5. Be2 {[%emt 0:01:18]} e6 {[%emt 0:01:07]} 6. O-O {[%emt 0:00:34]} Be7 {[%emt 0:01:46]} 7. b3 {[%emt 0:00:52]} dxc4 {[%emt 0:03:30]} 8. bxc4 {[%emt 0:01:10]} O-O {[%emt 0:01:13]} 9. Nc3 {[%emt 0:01:44]} a6 {[%emt 0:03:41]} 10. Bd2 {[%emt 0:01:20]} Bb4 {[%emt 0:03:16]} 11. Qb3 {[%emt 0:01:08]} Bxc3 {[%emt 0:02:12]} 12. Bxc3 {[%emt 0:00:27]} Ne4 {[%emt 0:02:34]} 13. Rfd1 {[%emt 0:02:39]} Nxc3 {[%emt 0:01:30]} 14. Qxc3 {[%emt 0:00:06]} Qf6 {[%emt 0:03:18]} 15. Rd2 {[%emt 0:02:19]} Rfd8 {[%emt 0:03:19]} 16. Rb2 {[%emt 0:01:36]} b6 {[%emt 0:01:06]} 17. a4 {[%emt 0:02:48]} a5 {[%emt 0:01:01]} 18. c5 {[%emt 0:04:54]} Nb4 {[%emt 0:04:32]} 19. cxb6 {[%emt 0:00:43]} cxb6 {[%emt 0:00:54]} 20. Rc1 {[%emt 0:02:36]} h6 {[%emt 0:03:22]} 21. h3 {[%emt 0:02:05]} Bxf3 {[%emt 0:06:46]} 22. Bxf3 {[%emt 0:00:24]} Rab8 {[%emt 0:00:28]} 23. Be4 {[%emt 0:04:14]} Qe7 {[%emt 0:01:36]} 24. Qc4 {[%emt 0:04:42]} Qd7 {[%emt 0:01:26]} 25. Qb3 {[%emt 0:08:45]} Rdc8 {[%emt 0:03:19]} 26. Rbb1 {[%emt 0:00:49]} Rxc1+ {[%emt 0:01:08]} 27. Rxc1 {[%emt 0:00:09]} Rc8 {[%emt 0:01:07]} 28. Rb1 {[%emt 0:07:19]} g6 {[%emt 0:01:00]} 29. Bf3 {[%emt 0:00:36]} Rc2 {[%emt 0:05:09]} 30. Bd1 {[%emt 0:01:31]} Rc7 {[%emt 0:00:31]} 31. Be2 {[%emt 0:02:34]} Qc8 {[%emt 0:00:27]} 32. Bb5 {[%emt 0:00:33]} Rc1+ {[%emt 0:01:23]} 33. Kh2 {[%emt 0:05:49]} Qc7+ {[%emt 0:01:17]} 34. g3 {[%emt 0:00:14]} Rc2 {[%emt 0:03:07]} 35. Rb2 {[%emt 0:03:19]} Rxb2 {[%emt 0:00:56]} 36. Qxb2 {[%emt 0:00:09]} Qc2 {[%emt 0:00:25]} 37. Qxc2 {[%emt 0:00:17]} Nxc2 {[%emt 0:00:44]} 38. Kg2 {[%emt 0:00:26]} Na3 {[%emt 0:03:28]} 39. Bc6 {[%emt 0:00:51]} Kf8 {[%emt 0:01:48]} 40. Kf3 {[%emt 0:00:12]} Ke7 {[%emt 0:01:11]} 41. Ke4 {[%emt 0:07:51]} Kd6 {[%emt 0:03:55]} 42. Be8 {[%emt 0:00:55]} Ke7 {[%emt 0:00:29]} 43. Bc6 {[%emt 0:00:29]} Kd6 {[%emt 0:00:08]} 44. d5 {[%emt 0:05:11]} f5+ {[%emt 0:02:09]} 45. Kd4 {[%emt 0:00:57]} exd5 {[%emt 0:05:12]} 46. Bxd5 {[%emt 0:00:17]} g5 {[%emt 0:03:48]} 47. Bf7 {[%emt 0:03:54]} b5 {[%emt 0:02:25]} 48. axb5 {[%emt 0:00:22]} Nxb5+ {[%emt 0:00:20]} 49. Kc4 {[%emt 0:00:24]} Nc7 {[%emt 0:03:27]} 50. f4 {[%emt 0:06:08]} Ke7 {[%emt 0:02:19]} 51. Bh5 {[%emt 0:01:04]} a4 {[%emt 0:04:42]} 52. Bf3 {[%emt 0:03:32]} Kd6 {[%emt 0:04:37]} 53. fxg5 {[%emt 0:01:42]} hxg5 {[%emt 0:00:26]} 54. h4 {[%emt 0:00:31]} gxh4 {[%emt 0:04:04]} 55. gxh4 {[%emt 0:00:08]} Ne6 {[%emt 0:03:29]} 56. Kb4 {[%emt 0:01:56]} Ke5 {[%emt 0:02:48]} 57. Kxa4 {[%emt 0:00:39]} f4 {[%emt 0:03:09]} 58. exf4+ {[%emt 0:04:38]} Nxf4 {[%emt 0:00:33]} 59. Kb4 {[%emt 0:00:39]} Kf6 {[%emt 0:04:13]} 60. Kc4 {[%emt 0:00:39]} Kg6 {[%emt 0:02:38]} 61. Kd4 {[%emt 2:10:20]} Ne6+ {[%emt 2:11:03]} 62. Ke5 {[%emt 0:00:32]} Ng7 {[%emt 0:01:44]} 63. Kf4 {[%emt 0:00:31]} Nh5+ {[%emt 0:01:12]} 64. Ke5 {[%emt 0:00:32]} Ng7 {[%emt 0:00:23]} 65. Bg4 {[%emt 0:00:11]} Kf7 {[%emt 0:01:15]} 66. Kf4 {[%emt 0:00:22]} Kg6 {[%emt 0:00:12]} 67. Kg3 {[%emt 0:00:48]} Nh5+ {[%emt 0:00:56]} 68. Kf3 {[%emt 0:00:14]} Nf6 {[%emt 0:00:22]} 69. Kf4 {[%emt 0:00:40]} Nh5+ {[%emt 0:00:20]} 70. Bxh5+ {[%emt 0:00:21]} Kxh5 71. Kg3 1/2-1/2

[Event "7. Arber-Senioren-Cup 2019"]
[Site "Bodenmais"]
[Date "2019.07.31"]
[Round "5.21"]
[White "Ketzscher, Roland"]
[Black "Berger, Siegfried"]
[Result "1-0"]
[ECO "D55"]
[WhiteElo "1917"]
[BlackElo "1548"]
[Annotator "NA"]
[PlyCount "73"]
[EventDate "2019.07.27"]
[EventType "swiss"]
[EventCountry "GER"]
[SourceTitle "playchess.com"]
[Source "ChessBase"]
[SourceQuality "1"]
[TimeControl "60/7800+30:0"]

1. d4 {[%emt 0:00:27]} d5 {[%emt 0:00:00]} 2. c4 {[%emt 0:00:05]} e6 {[%emt 0:00:27]} 3. Nc3 {[%emt 0:00:17]} Nf6 {[%emt 0:01:02]} 4. Bg5 {[%emt 0:00:28]} Be7 {[%emt 0:00:45]} 5. Nf3 {[%emt 0:00:07]} O-O {[%emt 0:02:51]} 6. e3 {[%emt 0:00:06]} Ne8 {[%emt 0:04:27]} 7. Bxe7 {[%emt 0:00:50]} Qxe7 {[%emt 0:00:10]} 8. cxd5 {[%emt 0:00:17]} exd5 {[%emt 0:02:01]} 9. Nxd5 {[%emt 0:00:09]} Qd6 {[%emt 0:02:45]} 10. Nc3 {[%emt 0:00:49]} Bg4 {[%emt 0:01:58]} 11. Be2 {[%emt 0:00:08]} Nf6 {[%emt 0:01:14]} 12. O-O {[%emt 0:00:52]} Re8 {[%emt 0:02:40]} 13. Rc1 {[%emt 0:01:18]} a6 {[%emt 0:03:09]} 14. Qc2 {[%emt 0:01:51]} Nbd7 {[%emt 0:01:13]} 15. Rfd1 {[%emt 0:00:29]} Rac8 {[%emt 0:03:25]} 16. e4 {[%emt 0:02:32]} Nh5 {[%emt 0:06:14]} 17. Qd2 {[%emt 0:07:32]} Rcd8 {[%emt 0:05:57]} 18. e5 {[%emt 0:05:47]} Qf8 {[%emt 0:03:40]} 19. h3 {[%emt 0:02:39]} Bxf3 {[%emt 0:02:35]} 20. Bxf3 {[%emt 0:00:06]} g6 {[%emt 0:01:36]} 21. Bxh5 {[%emt 0:00:49]} gxh5 {[%emt 0:00:16]} 22. Qg5+ {[%emt 0:00:22]} Kh8 {[%emt 0:00:22]} 23. Ne4 {[%emt 0:07:24]} f5 {[%emt 0:10:14]} 24. Ng3 {[%emt 0:00:48]} f4 {[%emt 0:04:00]} 25. Nxh5 {[%emt 0:00:26]} c6 {[%emt 0:00:46]} 26. Nxf4 {[%emt 0:02:10]} Re7 {[%emt 0:01:57]} 27. Qh4 {[%emt 0:03:54]} Kg8 {[%emt 0:02:51]} 28. Rd3 {[%emt 0:05:50]} Rde8 {[%emt 0:03:18]} 29. Rg3+ {[%emt 0:02:02]} Rg7 {[%emt 0:01:24]} 30. Rxg7+ {[%emt 0:00:16]} Qxg7 {[%emt 0:00:52]} 31. Rc3 {[%emt 0:00:17]} Qf7 {[%emt 0:02:42]} 32. Rg3+ {[%emt 0:01:07]} Kh8 {[%emt 0:00:20]} 33. e6 {[%emt 0:01:35]} Qf5 {[%emt 0:00:43]} 34. exd7 {[%emt 0:00:58]} Re1+ {[%emt 0:00:54]} 35. Kh2 {[%emt 0:00:06]} Qxd7 {[%emt 0:00:31]} 36. Ng6+ Kg8 37. Ne5+ {Qd8} 1-0

[Event "7. Arber-Senioren-Cup 2019"]
[Site "Bodenmais"]
[Date "2019.07.31"]
[Round "5.23"]
[White "Wacker, Manfred"]
[Black "Latzel, Wolfgang"]
[Result "0-1"]
[ECO "A42"]
[WhiteElo "1741"]
[BlackElo "1881"]
[Annotator "NA"]
[PlyCount "75"]
[EventDate "2019.07.27"]
[EventType "swiss"]
[EventCountry "GER"]
[SourceTitle "playchess.com"]
[Source "ChessBase"]
[SourceQuality "1"]
[TimeControl "60/7800+30:0"]

1. d4 {[%emt 0:00:00]} d6 {[%emt 0:00:00]} 2. c4 {[%emt 0:00:00]} g6 {[%emt 0:00:00]} 3. Nc3 {[%emt 0:00:29]} Bg7 {[%emt 0:00:00]} 4. e4 {[%emt 0:00:09]} Nc6 {[%emt 0:00:00]} 5. Be3 {[%emt 0:01:08]} e5 {[%emt 0:00:15]} 6. d5 {[%emt 0:04:39]} Nce7 {[%emt 0:00:21]} 7. f3 {[%emt 0:07:28]} f5 {[%emt 0:01:09]} 8. Bd3 {[%emt 0:01:22]} Nf6 {[%emt 0:00:10]} 9. exf5 {[%emt 0:04:15]} Nxf5 {[%emt 0:00:36]} 10. Bg5 {[%emt 0:00:54]} O-O {[%emt 0:06:47]} 11. Ne4 {[%emt 0:01:56]} c5 {[%emt 0:00:34]} 12. Ne2 {[%emt 0:01:26]} Nd4 {[%emt 0:01:11]} 13. O-O {[%emt 0:02:20]} Qc7 {[%emt 0:03:53]} 14. Nxf6+ {[%emt 0:03:26]} Bxf6 {[%emt 0:00:19]} 15. Bh6 {[%emt 0:01:04]} Bg7 {[%emt 0:00:53]} 16. Qd2 {[%emt 0:02:59]} Nxe2+ {[%emt 0:21:05]} 17. Bxe2 {[%emt 0:00:39]} Bf5 {[%emt 0:00:06]} 18. Bg5 {[%emt 0:06:38]} Rae8 {[%emt 0:01:54]} 19. Kh1 {[%emt 0:07:39]} e4 {[%emt 0:09:20]} 20. fxe4 {[%emt 0:01:34]} Rxe4 {[%emt 0:00:38]} 21. Rf4 {[%emt 0:07:42]} Rfe8 {[%emt 0:17:58]} 22. Rxe4 {[%emt 0:03:05]} Rxe4 {[%emt 0:01:19]} 23. Rf1 {[%emt 0:01:45]} Qd7 {[%emt 0:04:50]} 24. b3 {[%emt 0:01:38]} Qe8 {[%emt 0:01:03]} 25. Bf3 {[%emt 0:02:57]} Rd4 {[%emt 0:03:48]} 26. Qe1 {[%emt 0:04:20]} Qxe1 {[%emt 0:10:36]} 27. Rxe1 {[%emt 0:00:07]} Be5 {[%emt 0:00:00]} 28. Kg1 {[%emt 0:02:20]} b6 {[%emt 0:02:20]} 29. Be3 {[%emt 0:03:28]} Rd3 {[%emt 0:00:17]} 30. g4 {[%emt 0:03:54]} Bd7 {[%emt 0:02:13]} 31. Kg2 {[%emt 0:00:51]} Rc3 {[%emt 0:04:03]} 32. Re2 {[%emt 0:04:12]} b5 {[%emt 0:02:20]} 33. Bxc5 {[%emt 0:11:52]} bxc4 {[%emt 0:03:31]} 34. Bxa7 {[%emt 0:04:07]} cxb3 {[%emt 0:08:13]} 35. axb3 {[%emt 0:00:50]} Rxb3 {[%emt 0:00:07]} 36. Re3 Rb7 {[%emt 0:04:15]} 37. Bc5 {[%emt 0:06:32]} Rb2+ 38. Re2 0-1

[Event "7. Arber-Senioren-Cup 2019"]
[Site "Bodenmais"]
[Date "2019.07.31"]
[Round "5.24"]
[White "Wittkugel, Friedhelm"]
[Black "Otto, Klaus"]
[Result "1/2-1/2"]
[ECO "A45"]
[WhiteElo "1920"]
[BlackElo "1725"]
[Annotator "NA"]
[PlyCount "114"]
[EventDate "2019.07.27"]
[EventType "swiss"]
[EventCountry "GER"]
[SourceTitle "playchess.com"]
[Source "ChessBase"]
[SourceQuality "1"]
[TimeControl "60/7800+30:0"]

1. d4 {[%emt 0:00:00]} Nf6 {[%emt 0:00:00]} 2. Bg5 {[%emt 0:00:08]} e6 {[%emt 0:00:28]} 3. e4 {[%emt 0:00:12]} Be7 {[%emt 0:00:14]} 4. Bxf6 {[%emt 0:00:11]} Bxf6 {[%emt 0:00:12]} 5. Nf3 {[%emt 0:00:12]} g6 {[%emt 0:01:40]} 6. Bd3 {[%emt 0:01:02]} O-O {[%emt 0:00:20]} 7. h4 {[%emt 0:00:24]} Nc6 {[%emt 0:03:26]} 8. e5 {[%emt 0:02:10]} Be7 {[%emt 0:00:46]} 9. c3 {[%emt 0:00:49]} h6 {[%emt 0:02:47]} 10. Qd2 {[%emt 0:01:31]} Kg7 {[%emt 0:00:28]} 11. Qe3 {[%emt 0:02:24]} Rh8 {[%emt 0:00:26]} 12. Nbd2 {[%emt 0:00:44]} a6 {[%emt 0:02:12]} 13. Be4 {[%emt 0:08:07]} d5 {[%emt 0:06:27]} 14. Bc2 {[%emt 0:01:29]} b5 {[%emt 0:01:27]} 15. a3 {[%emt 0:03:20]} Na5 {[%emt 0:02:55]} 16. b3 {[%emt 0:01:51]} Nb7 {[%emt 0:02:25]} 17. a4 {[%emt 0:05:55]} bxa4 {[%emt 0:04:01]} 18. Rxa4 {[%emt 0:01:24]} Bd7 {[%emt 0:00:41]} 19. Ra1 {[%emt 0:00:18]} c5 {[%emt 0:00:42]} 20. g3 {[%emt 0:05:28]} cxd4 {[%emt 0:08:56]} 21. cxd4 {[%emt 0:02:05]} Bb5 {[%emt 0:00:27]} 22. Bd3 {[%emt 0:00:49]} Qb6 {[%emt 0:02:53]} 23. O-O {[%emt 0:01:22]} Bxd3 {[%emt 0:06:00]} 24. Qxd3 {[%emt 0:01:15]} Qb5 {[%emt 0:00:12]} 25. Qe3 {[%emt 0:03:22]} a5 {[%emt 0:02:14]} 26. Rfc1 {[%emt 0:01:08]} Rac8 {[%emt 0:00:40]} 27. Kg2 {[%emt 0:01:55]} Rxc1 {[%emt 0:02:30]} 28. Rxc1 {[%emt 0:00:19]} Bb4 {[%emt 0:02:44]} 29. Qf4 {[%emt 0:02:11]} Qd7 {[%emt 0:00:20]} 30. Qf6+ {[%emt 0:02:06]} Kg8 {[%emt 0:04:45]} 31. Nf1 {[%emt 0:01:23]} Be7 {[%emt 0:00:44]} 32. Qf4 {[%emt 0:00:32]} Kg7 {[%emt 0:01:25]} 33. Ne3 {[%emt 0:01:38]} Rc8 {[%emt 0:03:48]} 34. Rxc8 {[%emt 0:00:25]} Qxc8 {[%emt 0:00:13]} 35. Ng4 {[%emt 0:01:57]} Qh8 {[%emt 0:01:07]} 36. Qc1 {[%emt 0:04:48]} Bb4 {[%emt 0:01:09]} 37. Qc7 {[%emt 0:02:17]} Nd8 {[%emt 0:00:08]} 38. Qd7 {[%emt 0:01:14]} Qf8 {[%emt 0:01:28]} 39. Nf6 {[%emt 0:03:46]} Qe7 {[%emt 0:01:22]} 40. Qc8 {[%emt 0:01:11]} Qf8 {[%emt 0:05:27]} 41. g4 {[%emt 0:07:33]} Be7 {[%emt 0:03:19]} 42. g5 {[%emt 0:01:54]} h5 {[%emt 0:00:37]} 43. Ng1 {[%emt 0:02:51]} Bb4 {[%emt 0:02:22]} 44. Ne2 {[%emt 0:01:52]} Qe7 {[%emt 0:02:10]} 45. Qc2 {[%emt 0:00:59]} Qb7 {[%emt 0:02:07]} 46. Nf4 {[%emt 0:00:53]} Qc6 {[%emt 0:00:50]} 47. Qxc6 {[%emt 0:15:32]} Nxc6 {[%emt 0:00:17]} 48. Ne2 {[%emt 0:00:25]} Ba3 {[%emt 0:00:32]} 49. Kf3 {[%emt 0:01:07]} Bb4 {[%emt 0:02:34]} 50. Ke3 {[%emt 0:00:35]} Ne7 {[%emt 0:01:16]} 51. Nd7 Nf5+ 52. Kd3 {[%emt 0:04:59]} Nxh4 {[%emt 0:00:46]} 53. f4 {[%emt 0:04:07]} Nf5 {[%emt 0:01:16]} 54. Nf6 {[%emt 0:00:52]} Be1 {[%emt 0:04:04]} 55. Ng1 {[%emt 0:05:10]} Bf2 {[%emt 0:08:51]} 56. Ne2 {[%emt 0:00:04]} Be1 {[%emt 0:01:39]} 57. Kc2 {[%emt 0:01:48]} Bb4 {[%emt 0:03:16]} 1/2-1/2

[Event "7. Arber-Senioren-Cup 2019"]
[Site "Bodenmais"]
[Date "2019.07.31"]
[Round "5.25"]
[White "Loibl, Johann"]
[Black "Meul, Willi"]
[Result "1-0"]
[ECO "B20"]
[WhiteElo "1760"]
[BlackElo "1904"]
[Annotator "NA"]
[PlyCount "47"]
[EventDate "2019.07.27"]
[EventType "swiss"]
[EventCountry "GER"]
[SourceTitle "playchess.com"]
[Source "ChessBase"]
[SourceQuality "1"]
[TimeControl "60/7800+30:0"]

1. e4 {[%emt 0:00:00]} c5 {[%emt 0:00:00]} 2. b4 {[%emt 0:00:00]} cxb4 {[%emt 0:00:01]} 3. a3 {[%emt 0:00:00]} d5 {[%emt 0:01:51]} 4. exd5 {[%emt 0:00:00]} Qxd5 {[%emt 0:00:07]} 5. Nf3 {[%emt 0:00:06]} e5 {[%emt 0:02:15]} 6. c4 {[%emt 0:01:13]} Qe4+ {[%emt 0:03:44]} 7. Be2 {[%emt 0:02:42]} Nc6 {[%emt 0:01:11]} 8. O-O {[%emt 0:04:24]} Bc5 {[%emt 0:25:27]} 9. d3 {[%emt 0:15:41]} Qf5 {[%emt 0:03:32]} 10. axb4 {[%emt 0:04:59]} Bxb4 {[%emt 0:00:38]} 11. d4 {[%emt 0:09:37]} e4 {[%emt 0:06:43]} 12. Bb2 {[%emt 0:11:51]} exf3 {[%emt 0:07:53]} 13. Bxf3 {[%emt 0:02:15]} Bd6 {[%emt 0:15:08]} 14. Re1+ {[%emt 0:03:08]} Nge7 {[%emt 0:04:42]} 15. c5 {[%emt 0:01:29]} Bb8 {[%emt 0:04:55]} 16. d5 {[%emt 0:08:29]} Ne5 {[%emt 0:07:44]} 17. d6 {[%emt 0:11:39]} Nxf3+ {[%emt 0:08:30]} 18. gxf3 {[%emt 0:06:10]} Qg5+ {[%emt 0:03:01]} 19. Kh1 {[%emt 0:00:27]} Bh3 {[%emt 0:01:53]} 20. Rxe7+ {[%emt 0:05:57]} Kd8 {[%emt 0:02:06]} 21. Qg1 {[%emt 0:00:36]} Qxc5 {[%emt 0:03:02]} 22. Qxg7 {[%emt 0:03:16]} Qxd6 {[%emt 0:01:12]} 23. Qxh8+ {[%emt 0:00:16]} Kxe7 {[%emt 0:00:19]} 24. Bc1 1-0

[Event "7. Arber-Senioren-Cup 2019"]
[Site "Bodenmais"]
[Date "2019.07.31"]
[Round "5.26"]
[White "Wolff, Peter"]
[Black "Cordts, Elof"]
[Result "1/2-1/2"]
[ECO "A15"]
[WhiteElo "1915"]
[BlackElo "1710"]
[Annotator "NA"]
[PlyCount "66"]
[EventDate "2019.07.27"]
[EventType "swiss"]
[EventCountry "GER"]
[SourceTitle "playchess.com"]
[Source "ChessBase"]
[SourceQuality "1"]
[TimeControl "60/7800+30:0"]

1. c4 {[%emt 0:00:00]} Nf6 {[%emt 0:00:00]} 2. g3 {[%emt 0:00:00]} g6 {[%emt 0:00:35]} 3. Bg2 {[%emt 0:00:00]} Bg7 {[%emt 0:00:20]} 4. Nc3 {[%emt 0:00:00]} c5 {[%emt 0:04:17]} 5. e4 {[%emt 0:00:14]} d6 {[%emt 0:00:16]} 6. d3 {[%emt 0:00:44]} Nc6 {[%emt 0:01:02]} 7. Nge2 {[%emt 0:00:06]} a6 {[%emt 0:00:23]} 8. O-O {[%emt 0:02:05]} O-O {[%emt 0:00:28]} 9. h3 {[%emt 0:01:36]} e5 {[%emt 0:05:19]} 10. Bg5 {[%emt 0:05:45]} h6 {[%emt 0:07:48]} 11. Be3 {[%emt 0:00:07]} Nh7 {[%emt 0:13:29]} 12. Qd2 {[%emt 0:02:00]} g5 {[%emt 0:03:26]} 13. g4 {[%emt 0:03:07]} Ne7 {[%emt 0:05:44]} 14. Ng3 {[%emt 0:00:47]} Nf6 {[%emt 0:02:53]} 15. Nf5 {[%emt 0:02:03]} Nxf5 {[%emt 0:02:08]} 16. exf5 {[%emt 0:00:32]} Rb8 {[%emt 0:00:22]} 17. Kh2 {[%emt 0:20:18]} Bd7 {[%emt 0:02:34]} 18. Ne4 {[%emt 0:06:13]} Bc6 {[%emt 0:01:37]} 19. Rh1 {[%emt 0:03:14]} Qe7 {[%emt 0:06:16]} 20. Kg3 {[%emt 0:01:06]} Rbd8 {[%emt 0:01:28]} 21. h4 {[%emt 0:10:15]} Nxe4+ {[%emt 0:05:45]} 22. dxe4 {[%emt 0:00:39]} f6 {[%emt 0:00:30]} 23. hxg5 {[%emt 0:07:29]} hxg5 {[%emt 0:00:30]} 24. Qa5 {[%emt 0:04:45]} Kf7 {[%emt 0:01:21]} 25. Rad1 {[%emt 0:00:54]} Rh8 {[%emt 0:00:29]} 26. Rxh8 {[%emt 0:01:48]} Rxh8 {[%emt 0:00:23]} 27. Qb6 {[%emt 0:03:30]} Bf8 {[%emt 0:00:48]} 28. Rh1 {[%emt 0:03:43]} Rxh1 {[%emt 0:00:41]} 29. Bxh1 {[%emt 0:00:01]} Ke8 {[%emt 0:00:52]} 30. f3 {[%emt 0:03:40]} Qf7 {[%emt 0:04:08]} 31. b3 {[%emt 0:01:08]} Kd7 {[%emt 0:00:50]} 32. Bf2 {[%emt 0:02:15]} Be7 {[%emt 0:00:15]} 33. Qa5 {[%emt 0:00:49]} Bd8 {[%emt 0:00:32]} 1/2-1/2

[Event "7. Arber-Senioren-Cup 2019"]
[Site "Bodenmais"]
[Date "2019.07.31"]
[Round "5.27"]
[White "Auterhoff, Juergen"]
[Black "Schmid, Johann"]
[Result "1/2-1/2"]
[ECO "C05"]
[WhiteElo "1673"]
[BlackElo "1842"]
[Annotator "NA"]
[PlyCount "41"]
[EventDate "2019.07.27"]
[EventType "swiss"]
[EventCountry "GER"]
[SourceTitle "playchess.com"]
[Source "ChessBase"]
[SourceQuality "1"]
[TimeControl "60/7800+30:0"]

1. e4 {[%emt 0:00:00]} e6 {[%emt 0:00:00]} 2. d4 {[%emt 0:00:00]} d5 {[%emt 0:00:00]} 3. Nd2 {[%emt 0:00:00]} Nf6 {[%emt 0:00:54]} 4. e5 {[%emt 0:00:00]} Nfd7 {[%emt 0:00:18]} 5. Bd3 {[%emt 0:00:27]} c5 {[%emt 0:00:20]} 6. c3 {[%emt 0:00:49]} Nc6 {[%emt 0:00:26]} 7. Ne2 {[%emt 0:00:37]} Nb6 {[%emt 0:00:37]} 8. O-O {[%emt 0:03:15]} Bd7 {[%emt 0:00:25]} 9. Nf3 {[%emt 0:00:50]} h6 {[%emt 0:01:24]} 10. a4 {[%emt 0:06:08]} a5 {[%emt 0:03:42]} 11. Be3 {[%emt 0:09:49]} cxd4 {[%emt 0:00:49]} 12. cxd4 {[%emt 0:00:27]} Nb4 {[%emt 0:05:33]} 13. b3 {[%emt 0:03:50]} Nxd3 {[%emt 0:10:50]} 14. Qxd3 {[%emt 0:00:04]} Nc8 {[%emt 0:00:19]} 15. Nc3 {[%emt 0:03:50]} Na7 {[%emt 0:01:58]} 16. Rfc1 {[%emt 0:09:19]} Be7 {[%emt 0:02:48]} 17. Bd2 {[%emt 0:07:47]} Qb6 {[%emt 0:12:10]} 18. Rab1 {[%emt 0:07:57]} Nc6 {[%emt 0:05:39]} 19. Nb5 {[%emt 0:03:14]} O-O {[%emt 0:13:10]} 20. Qe2 {[%emt 0:12:16]} Nb4 {[%emt 0:11:47]} 21. Nc3 1/2-1/2

[Event "7. Arber-Senioren-Cup 2019"]
[Site "Bodenmais"]
[Date "2019.08.01"]
[Round "6.1"]
[White "Pirrot, Dieter"]
[Black "Blechzin, Igor"]
[Result "1/2-1/2"]
[ECO "D37"]
[WhiteElo "2315"]
[BlackElo "2221"]
[Annotator "NA"]
[PlyCount "59"]
[EventDate "2019.07.27"]
[EventType "swiss"]
[EventCountry "GER"]
[SourceTitle "playchess.com"]
[Source "ChessBase"]
[SourceQuality "1"]
[TimeControl "60/7800+30:0"]

1. d4 {[%emt 0:00:00]} Nf6 {[%emt 0:00:00]} 2. c4 {[%emt 0:00:00]} e6 {[%emt 0:00:03]} 3. Nf3 {[%emt 0:00:27]} d5 {[%emt 0:00:15]} 4. Nc3 {[%emt 0:00:25]} Be7 {[%emt 0:00:17]} 5. Bf4 {[%emt 0:00:41]} O-O {[%emt 0:00:20]} 6. e3 {[%emt 0:00:26]} c5 {[%emt 0:01:39]} 7. dxc5 {[%emt 0:00:21]} Bxc5 {[%emt 0:04:04]} 8. a3 {[%emt 0:01:52]} Nc6 {[%emt 0:03:21]} 9. Qc2 {[%emt 0:00:52]} Qa5 {[%emt 0:12:03]} 10. O-O-O {[%emt 0:01:03]} dxc4 {[%emt 0:05:01]} 11. Bxc4 {[%emt 0:01:14]} a6 {[%emt 0:02:43]} 12. Ng5 {[%emt 0:05:21]} Ne7 {[%emt 0:08:57]} 13. Nce4 {[%emt 0:09:59]} Nxe4 {[%emt 0:01:20]} 14. Qxe4 {[%emt 0:10:03]} Ng6 {[%emt 0:00:15]} 15. h4 {[%emt 0:03:12]} Be7 {[%emt 0:03:31]} 16. h5 {[%emt 0:20:47]} Bxg5 {[%emt 0:00:15]} 17. hxg6 {[%emt 0:00:08]} hxg6 {[%emt 0:02:01]} 18. Bd6 {[%emt 0:12:27]} Re8 {[%emt 0:05:08]} 19. f4 {[%emt 0:13:56]} f5 {[%emt 0:08:02]} 20. Qc2 {[%emt 0:12:48]} Bf6 {[%emt 0:01:40]} 21. g4 {[%emt 0:03:10]} Bd7 {[%emt 0:12:48]} 22. gxf5 {[%emt 0:08:27]} Rac8 {[%emt 0:16:55]} 23. Kb1 {[%emt 0:11:46]} gxf5 {[%emt 0:08:57]} 24. Bb4 {[%emt 0:01:57]} Qc7 {[%emt 0:00:34]} 25. Qxf5 {[%emt 0:01:23]} a5 {[%emt 0:13:46]} 26. Qxf6 {[%emt 0:16:12]} Qxc4 {[%emt 0:10:37]} 27. Rhg1 {[%emt 0:03:24]} Qc2+ {[%emt 0:00:53]} 28. Ka2 {[%emt 0:00:11]} Qc4+ {[%emt 0:00:11]} 29. Ka1 {[%emt 0:00:13]} Qc1+ {[%emt 0:00:10]} 30. Ka2 {[%emt 0:00:25]} 1/2-1/2

[Event "7. Arber-Senioren-Cup 2019"]
[Site "Bodenmais"]
[Date "2019.08.01"]
[Round "6.2"]
[White "Pribyl, Josef"]
[Black "Herbold, Manfred"]
[Result "1/2-1/2"]
[ECO "B06"]
[WhiteElo "2234"]
[BlackElo "2081"]
[Annotator "NA"]
[PlyCount "32"]
[EventDate "2019.07.27"]
[EventType "swiss"]
[EventCountry "GER"]
[SourceTitle "playchess.com"]
[Source "ChessBase"]
[SourceQuality "1"]
[TimeControl "60/7800+30:0"]

1. d4 {[%emt 0:00:00]} g6 {[%emt 0:00:10]} 2. e4 {[%emt 0:00:00]} Bg7 {[%emt 0:00:15]} 3. c3 {[%emt 0:00:13]} b6 {[%emt 0:00:05]} 4. f4 {[%emt 0:01:59]} Bb7 {[%emt 0:01:38]} 5. Bd3 {[%emt 0:02:27]} c5 {[%emt 0:06:11]} 6. Nf3 {[%emt 0:00:39]} e6 {[%emt 0:01:21]} 7. Be3 {[%emt 0:00:55]} d6 {[%emt 0:00:36]} 8. Nbd2 {[%emt 0:01:01]} Ne7 {[%emt 0:02:01]} 9. Qe2 {[%emt 0:02:30]} Nbc6 {[%emt 0:02:33]} 10. a3 {[%emt 0:00:15]} cxd4 {[%emt 0:06:49]} 11. cxd4 {[%emt 0:00:28]} e5 {[%emt 0:03:44]} 12. fxe5 {[%emt 0:03:11]} dxe5 {[%emt 0:00:11]} 13. d5 {[%emt 0:01:37]} Nd4 {[%emt 0:02:26]} 14. Qf2 {[%emt 0:03:24]} Nxf3+ {[%emt 0:05:45]} 15. Nxf3 {[%emt 0:00:04]} O-O {[%emt 0:00:17]} 16. O-O {[%emt 0:09:44]} Nc8 1/2-1/2